[Event "*** Titled Tuesday Blitz"]
[Site "Chess.com"]
[Date "2021.04.20"]
[Round "1"]
[White "volkanyirik"]
[Black "PavelShkapenko"]
[Result "0-1"]
[WhiteElo "2401"]
[BlackElo "2720"]
[TimeControl "180+1"]
[EndTime "10:04:44 PDT"]
[Termination "PavelShkapenko won by resignation"]

1. e4 {[%clk 0:03:00.9]} 1... e5 {[%clk 0:02:55.7]} 2. Nc3 {[%clk 0:03:01.8]}
2... Nf6 {[%clk 0:02:55.2]} 3. Nf3 {[%clk 0:03:01.9]} 3... Nc6 {[%clk
0:02:54.9]} 4. d4 {[%clk 0:03:02.3]} 4... Bb4 {[%clk 0:02:53.9]} 5. d5 {[%clk
0:02:56.9]} 5... Bxc3+ {[%clk 0:02:52.5]} 6. bxc3 {[%clk 0:02:55.8]} 6... Nb8
{[%clk 0:02:53.4]} 7. Bd3 {[%clk 0:02:55.5]} 7... d6 {[%clk 0:02:53.6]} 8. h3
{[%clk 0:02:55.9]} 8... O-O {[%clk 0:02:53.7]} 9. c4 {[%clk 0:02:56.3]} 9...
Nbd7 {[%clk 0:02:53.5]} 10. Bg5 {[%clk 0:02:56.1]} 10... h6 {[%clk 0:02:52.9]}
11. Bh4 {[%clk 0:02:56.2]} 11... g5 {[%clk 0:02:53]} 12. Bg3 {[%clk 0:02:56.3]}
12... Nc5 {[%clk 0:02:49.1]} 13. Qe2 {[%clk 0:02:56.1]} 13... Nh5 {[%clk
0:02:32.7]} 14. Nd2 {[%clk 0:02:53.7]} 14... Nf4 {[%clk 0:02:28.7]} 15. Bxf4
{[%clk 0:02:53.3]} 15... exf4 {[%clk 0:02:28.5]} 16. f3 {[%clk 0:02:52.1]} 16...
Qf6 {[%clk 0:02:27.9]} 17. O-O {[%clk 0:02:51.4]} 17... Nd7 {[%clk 0:02:19]} 18.
Nb3 {[%clk 0:02:48.6]} 18... a5 {[%clk 0:02:16.8]} 19. a4 {[%clk 0:02:47]} 19...
b6 {[%clk 0:02:16.9]} 20. Qf2 {[%clk 0:02:46.6]} 20... Ne5 {[%clk 0:02:16.6]}
21. Nd4 {[%clk 0:02:45.5]} 21... Bd7 {[%clk 0:02:16.2]} 22. Rfd1 {[%clk
0:02:36.9]} 22... Kh8 {[%clk 0:02:08.4]} 23. Bf1 {[%clk 0:02:32.5]} 23... Rg8
{[%clk 0:02:07.9]} 24. Kh2 {[%clk 0:02:32.7]} 24... Rg7 {[%clk 0:02:07.6]} 25.
Nf5 {[%clk 0:02:15.6]} 25... Bxf5 {[%clk 0:02:04.1]} 26. exf5 {[%clk 0:02:16.5]}
26... Qxf5 {[%clk 0:02:04.2]} 27. Bd3 {[%clk 0:02:16.9]} 27... Qf6 {[%clk
0:02:03.6]} 28. Re1 {[%clk 0:02:09.2]} 28... h5 {[%clk 0:01:59.1]} 29. Rad1
{[%clk 0:01:56.3]} 29... g4 {[%clk 0:01:50.8]} 30. fxg4 {[%clk 0:01:55.1]} 30...
hxg4 {[%clk 0:01:51]} 31. Kh1 {[%clk 0:01:51.1]} 31... Qh6 {[%clk 0:01:40.6]}
32. Rf1 {[%clk 0:01:43.5]} 32... gxh3 {[%clk 0:01:19.6]} 33. gxh3 {[%clk
0:01:42.5]} 33... Qxh3+ {[%clk 0:01:19.6]} 34. Qh2 {[%clk 0:01:42.6]} 34...
Qxh2+ {[%clk 0:01:19.7]} 35. Kxh2 {[%clk 0:01:43.5]} 35... Ng4+ {[%clk
0:01:15.2]} 36. Kh3 {[%clk 0:01:42.7]} 36... Ne3 {[%clk 0:01:13.7]} 0-1

[Event "*** Titled Tuesday Blitz"]
[Site "Chess.com"]
[Date "2021.04.20"]
[Round "1"]
[White "AungTZ"]
[Black "DamianoLew95"]
[Result "0-1"]
[WhiteElo "2134"]
[BlackElo "2506"]
[TimeControl "180+1"]
[EndTime "10:04:54 PDT"]
[Termination "DamianoLew95 won by resignation"]

1. e4 {[%clk 0:02:59.2]} 1... c5 {[%clk 0:03:00.3]} 2. Nf3 {[%clk 0:02:58.4]}
2... d6 {[%clk 0:03:00.6]} 3. Bb5+ {[%clk 0:02:57.8]} 3... Bd7 {[%clk
0:03:00.6]} 4. Bxd7+ {[%clk 0:02:57.6]} 4... Nxd7 {[%clk 0:03:01.2]} 5. O-O
{[%clk 0:02:57.8]} 5... Ngf6 {[%clk 0:03:01.4]} 6. Re1 {[%clk 0:02:57.8]} 6...
e6 {[%clk 0:03:01.9]} 7. c3 {[%clk 0:02:56.7]} 7... Be7 {[%clk 0:03:00.9]} 8. d4
{[%clk 0:02:54.3]} 8... cxd4 {[%clk 0:03:00.6]} 9. cxd4 {[%clk 0:02:54.1]} 9...
d5 {[%clk 0:03:01.1]} 10. e5 {[%clk 0:02:53.1]} 10... Ne4 {[%clk 0:03:01.7]} 11.
Nbd2 {[%clk 0:02:52.9]} 11... Nxd2 {[%clk 0:03:00.9]} 12. Bxd2 {[%clk
0:02:52.6]} 12... O-O {[%clk 0:03:00.4]} 13. Rc1 {[%clk 0:02:52.4]} 13... Qb6
{[%clk 0:02:59.2]} 14. Bc3 {[%clk 0:02:37.9]} 14... Rac8 {[%clk 0:02:56.6]} 15.
Qd2 {[%clk 0:02:36]} 15... Qa6 {[%clk 0:02:50.2]} 16. b3 {[%clk 0:02:30.4]}
16... Ba3 {[%clk 0:02:42.3]} 17. Rc2 {[%clk 0:01:59.5]} 17... h6 {[%clk
0:02:28.2]} 18. g4 {[%clk 0:01:56.8]} 18... Rfe8 {[%clk 0:02:11.2]} 19. g5
{[%clk 0:01:55.8]} 19... h5 {[%clk 0:02:11]} 20. g6 {[%clk 0:01:55.4]} 20...
fxg6 {[%clk 0:02:10.5]} 21. Kh1 {[%clk 0:01:37.7]} 21... Rf8 {[%clk 0:02:01.4]}
22. Ng5 {[%clk 0:01:33.6]} 22... Rf5 {[%clk 0:01:56]} 23. Rg1 {[%clk 0:01:31.3]}
23... Rcf8 {[%clk 0:01:45.6]} 24. Qe3 {[%clk 0:01:28.2]} 24... Be7 {[%clk
0:01:37.5]} 25. f3 {[%clk 0:01:02.9]} 25... Bxg5 {[%clk 0:01:28.1]} 26. Rxg5
{[%clk 0:01:02.7]} 26... Rxg5 {[%clk 0:01:28.7]} 27. Qxg5 {[%clk 0:01:02.1]}
27... Qf1+ {[%clk 0:01:24.8]} 28. Qg1 {[%clk 0:01:01.9]} 28... Qxf3+ {[%clk
0:01:25.3]} 29. Rg2 {[%clk 0:00:59.6]} 29... Qxc3 {[%clk 0:01:24.7]} 30. Rxg6
{[%clk 0:00:59.7]} 30... Qf3+ {[%clk 0:01:21.5]} 0-1

[Event "*** Titled Tuesday Blitz"]
[Site "Chess.com"]
[Date "2021.04.20"]
[Round "1"]
[White "NicoChasin"]
[Black "GUST_b"]
[Result "1-0"]
[WhiteElo "2692"]
[BlackElo "2375"]
[TimeControl "180+1"]
[EndTime "10:04:57 PDT"]
[Termination "NicoChasin won by resignation"]

1. e4 {[%clk 0:02:50.8]} 1... c5 {[%clk 0:02:57.8]} 2. Nf3 {[%clk 0:02:44.4]}
2... Nc6 {[%clk 0:02:56.8]} 3. d4 {[%clk 0:02:44.8]} 3... cxd4 {[%clk
0:02:56.1]} 4. Nxd4 {[%clk 0:02:45.7]} 4... g6 {[%clk 0:02:56.7]} 5. Nxc6 {[%clk
0:02:44]} 5... bxc6 {[%clk 0:02:55.1]} 6. Qd4 {[%clk 0:02:43.3]} 6... Nf6 {[%clk
0:02:52.4]} 7. e5 {[%clk 0:02:43.5]} 7... Nd5 {[%clk 0:02:50.4]} 8. Nc3 {[%clk
0:02:44.1]} 8... Nxc3 {[%clk 0:02:47.5]} 9. Qxc3 {[%clk 0:02:44]} 9... Bg7
{[%clk 0:02:47]} 10. Bf4 {[%clk 0:02:38.3]} 10... O-O {[%clk 0:02:46.2]} 11.
O-O-O {[%clk 0:02:35.8]} 11... Qb6 {[%clk 0:02:31.9]} 12. Be3 {[%clk 0:02:35.5]}
12... Qc7 {[%clk 0:02:30.5]} 13. Bd4 {[%clk 0:02:34.1]} 13... f6 {[%clk
0:02:10.1]} 14. exf6 {[%clk 0:02:23.1]} 14... Bxf6 {[%clk 0:02:10]} 15. Bxf6
{[%clk 0:02:20.3]} 15... Rxf6 {[%clk 0:02:10.9]} 16. f3 {[%clk 0:02:20.1]} 16...
d6 {[%clk 0:02:03.6]} 17. Bc4+ {[%clk 0:02:16.4]} 17... Kg7 {[%clk 0:01:46.4]}
18. Rhe1 {[%clk 0:02:15.7]} 18... e5 {[%clk 0:01:43.8]} 19. g3 {[%clk
0:02:05.1]} 19... Bf5 {[%clk 0:01:26.2]} 20. Bd5 {[%clk 0:01:51]} 20... Rc8
{[%clk 0:01:23.6]} 21. Bb3 {[%clk 0:01:50.4]} 21... Qb6 {[%clk 0:01:13.2]} 22.
f4 {[%clk 0:01:48.8]} 22... e4 {[%clk 0:01:11.9]} 23. Rxd6 {[%clk 0:01:43.7]}
23... Rf8 {[%clk 0:01:11.5]} 24. Rxf6 {[%clk 0:01:27.9]} 24... Rxf6 {[%clk
0:01:12.4]} 25. Qe3 {[%clk 0:01:22]} 25... Qa5 {[%clk 0:01:05]} 26. c3 {[%clk
0:01:19.2]} 26... Rd6 {[%clk 0:01:02.9]} 27. g4 {[%clk 0:01:18.8]} 27... Bxg4
{[%clk 0:01:01.3]} 28. Qxe4 {[%clk 0:01:18.5]} 28... Re6 {[%clk 0:00:59.4]} 29.
Bxe6 {[%clk 0:01:16.9]} 1-0

[Event "*** Titled Tuesday Blitz"]
[Site "Chess.com"]
[Date "2021.04.20"]
[Round "1"]
[White "Beca95"]
[Black "SHIVACalypso"]
[Result "1/2-1/2"]
[WhiteElo "2832"]
[BlackElo "2455"]
[TimeControl "180+1"]
[EndTime "10:05:07 PDT"]
[Termination "Game drawn by repetition"]

1. e4 {[%clk 0:03:00]} 1... e6 {[%clk 0:02:59.2]} 2. Qe2 {[%clk 0:02:59.2]} 2...
c5 {[%clk 0:02:58.5]} 3. f4 {[%clk 0:02:58.3]} 3... Nc6 {[%clk 0:02:57.2]} 4. d3
{[%clk 0:02:58.3]} 4... Nge7 {[%clk 0:02:53.6]} 5. g3 {[%clk 0:02:58.2]} 5... d5
{[%clk 0:02:53.3]} 6. Bg2 {[%clk 0:02:57.1]} 6... g6 {[%clk 0:02:50.5]} 7. c3
{[%clk 0:02:56.7]} 7... Bg7 {[%clk 0:02:50.3]} 8. Nf3 {[%clk 0:02:54.3]} 8...
O-O {[%clk 0:02:50.6]} 9. O-O {[%clk 0:02:53]} 9... b5 {[%clk 0:02:42.5]} 10.
Nbd2 {[%clk 0:02:48.8]} 10... Rb8 {[%clk 0:02:35.2]} 11. e5 {[%clk 0:02:46.5]}
11... b4 {[%clk 0:02:31.9]} 12. Nb3 {[%clk 0:02:38.3]} 12... c4 {[%clk
0:02:07.7]} 13. dxc4 {[%clk 0:02:36.5]} 13... Ba6 {[%clk 0:02:04.9]} 14. Rd1
{[%clk 0:02:18.9]} 14... Bxc4 {[%clk 0:02:01.5]} 15. Qf2 {[%clk 0:02:18]} 15...
bxc3 {[%clk 0:01:44.4]} 16. bxc3 {[%clk 0:02:17.6]} 16... Bxb3 {[%clk
0:01:44.6]} 17. axb3 {[%clk 0:02:18.5]} 17... Rxb3 {[%clk 0:01:43.8]} 18. c4
{[%clk 0:02:19.2]} 18... Qb6 {[%clk 0:01:36.4]} 19. cxd5 {[%clk 0:02:16.4]}
19... Qxf2+ {[%clk 0:01:34.1]} 20. Kxf2 {[%clk 0:02:16.2]} 20... Nxd5 {[%clk
0:01:34.6]} 21. Ba3 {[%clk 0:02:16.3]} 21... Rfb8 {[%clk 0:01:32.1]} 22. Rdc1
{[%clk 0:02:10.9]} 22... Ncb4 {[%clk 0:01:18.9]} 23. Bxb4 {[%clk 0:02:07.7]}
23... Nxb4 {[%clk 0:01:19.8]} 24. Bf1 {[%clk 0:02:07.5]} 24... a6 {[%clk
0:01:07]} 25. Rc7 {[%clk 0:01:49.6]} 25... h6 {[%clk 0:01:04.6]} 26. h4 {[%clk
0:01:48.4]} 26... Nd3+ {[%clk 0:00:55.2]} 27. Ke2 {[%clk 0:01:28.4]} 27... Nb4
{[%clk 0:00:48.8]} 28. Kf2 {[%clk 0:01:28.2]} 28... Nd3+ {[%clk 0:00:45.7]} 29.
Ke2 {[%clk 0:01:24.1]} 29... Nb4 {[%clk 0:00:45.7]} 30. Kf2 {[%clk 0:01:22.8]}
1/2-1/2

[Event "*** Titled Tuesday Blitz"]
[Site "Chess.com"]
[Date "2021.04.20"]
[Round "1"]
[White "BigAl"]
[Black "VladimirBugayev"]
[Result "1-0"]
[WhiteElo "2582"]
[BlackElo "2263"]
[TimeControl "180+1"]
[EndTime "10:05:10 PDT"]
[Termination "BigAl won by resignation"]

1. Nf3 {[%clk 0:02:58.1]} 1... c5 {[%clk 0:02:58.6]} 2. g3 {[%clk 0:02:57.8]}
2... g6 {[%clk 0:02:57.8]} 3. Bg2 {[%clk 0:02:58.7]} 3... Nc6 {[%clk 0:02:57.2]}
4. O-O {[%clk 0:02:59.6]} 4... Bg7 {[%clk 0:02:54.4]} 5. d3 {[%clk 0:03:00.5]}
5... d6 {[%clk 0:02:51.9]} 6. e4 {[%clk 0:03:01.4]} 6... e5 {[%clk 0:02:50.4]}
7. c3 {[%clk 0:03:02.3]} 7... Nge7 {[%clk 0:02:49.5]} 8. a3 {[%clk 0:02:59.6]}
8... a5 {[%clk 0:02:46.8]} 9. a4 {[%clk 0:02:59.2]} 9... O-O {[%clk 0:02:44.7]}
10. Na3 {[%clk 0:02:59.8]} 10... h6 {[%clk 0:02:32.5]} 11. Nb5 {[%clk
0:02:55.1]} 11... Be6 {[%clk 0:02:25.1]} 12. d4 {[%clk 0:02:49.7]} 12... cxd4
{[%clk 0:02:24.2]} 13. cxd4 {[%clk 0:02:49.5]} 13... d5 {[%clk 0:02:14.4]} 14.
exd5 {[%clk 0:02:49.2]} 14... Nxd5 {[%clk 0:02:14.2]} 15. Nxe5 {[%clk
0:02:44.4]} 15... Nxe5 {[%clk 0:02:00.4]} 16. dxe5 {[%clk 0:02:43.9]} 16... Kh7
{[%clk 0:01:57.8]} 17. Re1 {[%clk 0:02:31.1]} 17... Nb4 {[%clk 0:01:42.6]} 18.
Nd6 {[%clk 0:02:30.2]} 18... Rb8 {[%clk 0:01:20.3]} 19. h4 {[%clk 0:02:21.6]}
19... Qb6 {[%clk 0:01:04.4]} 20. Be3 {[%clk 0:02:08.6]} 20... Qa6 {[%clk
0:01:01]} 21. Bf1 {[%clk 0:02:07.9]} 21... Qc6 {[%clk 0:01:00.7]} 22. Rc1 {[%clk
0:01:59.7]} 22... Qd7 {[%clk 0:01:00.6]} 23. Bb6 {[%clk 0:01:44.5]} 23... Nd5
{[%clk 0:00:58.6]} 24. Bxa5 {[%clk 0:01:41.9]} 24... Bxe5 {[%clk 0:00:57.2]} 25.
Rxe5 {[%clk 0:01:41.4]} 25... Qxd6 {[%clk 0:00:57.4]} 26. Bc7 {[%clk 0:01:27.9]}
26... Qb4 {[%clk 0:00:47.9]} 27. Bxb8 {[%clk 0:01:19]} 27... Rxb8 {[%clk
0:00:48.8]} 28. Rxd5 {[%clk 0:01:18]} 1-0

[Event "*** Titled Tuesday Blitz"]
[Site "Chess.com"]
[Date "2021.04.20"]
[Round "1"]
[White "Susal_De_Silva"]
[Black "Irishchessman16"]
[Result "1-0"]
[WhiteElo "2587"]
[BlackElo "2269"]
[TimeControl "180+1"]
[EndTime "10:05:12 PDT"]
[Termination "Susal_De_Silva won by resignation"]

1. e4 {[%clk 0:03:00.8]} 1... c5 {[%clk 0:02:59.4]} 2. Nf3 {[%clk 0:03:00.5]}
2... Nc6 {[%clk 0:02:59]} 3. Bb5 {[%clk 0:03:00.5]} 3... e6 {[%clk 0:02:55.6]}
4. O-O {[%clk 0:02:59.5]} 4... Nge7 {[%clk 0:02:51.2]} 5. Re1 {[%clk 0:02:59.6]}
5... a6 {[%clk 0:02:50]} 6. Bf1 {[%clk 0:03:00.2]} 6... Ng6 {[%clk 0:02:47.2]}
7. c3 {[%clk 0:02:59.2]} 7... Be7 {[%clk 0:02:42.7]} 8. d4 {[%clk 0:02:57.3]}
8... cxd4 {[%clk 0:02:04.6]} 9. cxd4 {[%clk 0:02:55.7]} 9... d6 {[%clk
0:02:03.2]} 10. d5 {[%clk 0:02:53.6]} 10... Nce5 {[%clk 0:02:02.7]} 11. Nxe5
{[%clk 0:02:53.4]} 11... dxe5 {[%clk 0:02:00.4]} 12. Nc3 {[%clk 0:02:50.3]}
12... O-O {[%clk 0:02:00]} 13. a4 {[%clk 0:02:48.4]} 13... Bg5 {[%clk
0:01:54.2]} 14. d6 {[%clk 0:02:41.7]} 14... Bxc1 {[%clk 0:01:49.2]} 15. Rxc1
{[%clk 0:02:42.6]} 15... Bd7 {[%clk 0:01:48.6]} 16. Qd2 {[%clk 0:02:41.1]} 16...
Qa5 {[%clk 0:01:45.4]} 17. Red1 {[%clk 0:02:39]} 17... Rac8 {[%clk 0:01:40.4]}
18. g3 {[%clk 0:02:37.2]} 18... Rfd8 {[%clk 0:01:21.7]} 19. h4 {[%clk
0:02:35.1]} 19... h6 {[%clk 0:01:17.2]} 20. h5 {[%clk 0:02:33.7]} 20... Nf8
{[%clk 0:01:17]} 21. Rb1 {[%clk 0:02:19]} 21... Qb4 {[%clk 0:01:15]} 22. Nd5
{[%clk 0:02:13.2]} 22... Qxe4 {[%clk 0:01:07.9]} 23. Ne7+ {[%clk 0:02:12.6]}
23... Kh8 {[%clk 0:01:06.6]} 24. Bg2 {[%clk 0:02:12.1]} 24... Qxa4 {[%clk
0:00:58.5]} 25. Nxc8 {[%clk 0:02:10.8]} 25... Rxc8 {[%clk 0:00:57.5]} 26. Bxb7
{[%clk 0:02:10.9]} 26... Rb8 {[%clk 0:00:56.4]} 27. Bg2 {[%clk 0:02:10.4]} 27...
Nh7 {[%clk 0:00:51.9]} 28. Rbc1 {[%clk 0:02:04.6]} 28... Nf6 {[%clk 0:00:50.8]}
29. Rc7 {[%clk 0:01:58.6]} 29... Qb4 {[%clk 0:00:47.7]} 30. Qxb4 {[%clk
0:01:55]} 30... Rxb4 {[%clk 0:00:48.6]} 31. Bc6 {[%clk 0:01:55.7]} 31... Bxc6
{[%clk 0:00:34]} 32. Rxc6 {[%clk 0:01:56.6]} 1-0

[Event "*** Titled Tuesday Blitz"]
[Site "Chess.com"]
[Date "2021.04.20"]
[Round "1"]
[White "Fraler15"]
[Black "anon481216"]
[Result "0-1"]
[WhiteElo "2208"]
[BlackElo "2534"]
[TimeControl "180+1"]
[EndTime "10:05:23 PDT"]
[Termination "anon481216 won by checkmate"]

1. e4 {[%clk 0:02:58.6]} 1... c5 {[%clk 0:02:59.8]} 2. Nf3 {[%clk 0:02:57.1]}
2... d6 {[%clk 0:03:00.2]} 3. d4 {[%clk 0:02:56.6]} 3... cxd4 {[%clk 0:03:00.5]}
4. Nxd4 {[%clk 0:02:57.5]} 4... Nf6 {[%clk 0:03:00.8]} 5. Nc3 {[%clk 0:02:57.8]}
5... a6 {[%clk 0:03:01.2]} 6. Bc4 {[%clk 0:02:57.8]} 6... e6 {[%clk 0:03:00.9]}
7. Bb3 {[%clk 0:02:57.9]} 7... b5 {[%clk 0:03:00.3]} 8. a3 {[%clk 0:02:56.7]}
8... Be7 {[%clk 0:02:59.8]} 9. Be3 {[%clk 0:02:55.3]} 9... O-O {[%clk
0:02:59.3]} 10. f3 {[%clk 0:02:55.9]} 10... Qc7 {[%clk 0:02:45]} 11. Qd2 {[%clk
0:02:55.7]} 11... Nc6 {[%clk 0:02:32.1]} 12. O-O-O {[%clk 0:02:53.4]} 12... Na5
{[%clk 0:02:30.5]} 13. Kb1 {[%clk 0:02:52.8]} 13... Nc4 {[%clk 0:02:27.9]} 14.
Bxc4 {[%clk 0:02:52.5]} 14... bxc4 {[%clk 0:02:27.9]} 15. g4 {[%clk 0:02:52.1]}
15... Rb8 {[%clk 0:02:26.8]} 16. h4 {[%clk 0:02:51.8]} 16... d5 {[%clk
0:02:21.1]} 17. exd5 {[%clk 0:02:50.1]} 17... Bxa3 {[%clk 0:02:19.6]} 18. Ndb5
{[%clk 0:02:10.1]} 18... axb5 {[%clk 0:02:14.4]} 19. bxa3 {[%clk 0:02:09.5]}
19... b4 {[%clk 0:01:58.3]} 20. Na2 {[%clk 0:02:06.3]} 20... bxa3+ {[%clk
0:01:53.1]} 21. Ka1 {[%clk 0:02:06.4]} 21... Nxd5 {[%clk 0:01:53]} 22. h5 {[%clk
0:02:02.8]} 22... Rb2 {[%clk 0:01:25.8]} 23. g5 {[%clk 0:01:55.8]} 23... Rxc2
{[%clk 0:01:17.5]} 24. Qxc2 {[%clk 0:01:17.8]} 24... Nxe3 {[%clk 0:01:17.2]} 25.
Qe4 {[%clk 0:01:09.5]} 25... Nxd1 {[%clk 0:01:16.7]} 26. Rxd1 {[%clk 0:01:10.4]}
26... Bb7 {[%clk 0:01:16.8]} 27. Qe3 {[%clk 0:01:08.5]} 27... Rd8 {[%clk
0:01:13.3]} 28. Rg1 {[%clk 0:01:06]} 28... Rd3 {[%clk 0:01:09.4]} 29. Qe1 {[%clk
0:00:57.6]} 29... Qb6 {[%clk 0:01:06.9]} 30. Nb4 {[%clk 0:00:52.5]} 30... Qd4+
{[%clk 0:01:06.3]} 31. Ka2 {[%clk 0:00:47.7]} 31... Qb2# {[%clk 0:01:06.1]} 0-1

[Event "*** Titled Tuesday Blitz"]
[Site "Chess.com"]
[Date "2021.04.20"]
[Round "1"]
[White "Klavdia_Nik"]
[Black "zmeeed67"]
[Result "0-1"]
[WhiteElo "2047"]
[BlackElo "2487"]
[TimeControl "180+1"]
[EndTime "10:05:23 PDT"]
[Termination "zmeeed67 won on time"]

1. Nf3 {[%clk 0:02:58.6]} 1... d5 {[%clk 0:02:59.6]} 2. c4 {[%clk 0:02:57]} 2...
d4 {[%clk 0:02:57.4]} 3. b4 {[%clk 0:02:53.5]} 3... e6 {[%clk 0:02:44.4]} 4. Bb2
{[%clk 0:02:50.3]} 4... Bxb4 {[%clk 0:02:44]} 5. Nxd4 {[%clk 0:02:43.2]} 5...
Nf6 {[%clk 0:02:41.1]} 6. Qa4+ {[%clk 0:02:40.5]} 6... Nbd7 {[%clk 0:02:37.4]}
7. Qxb4 {[%clk 0:02:37.8]} 7... c5 {[%clk 0:02:38]} 8. Qa4 {[%clk 0:02:36.1]}
8... cxd4 {[%clk 0:02:38.3]} 9. Bxd4 {[%clk 0:02:34.7]} 9... O-O {[%clk
0:02:37.5]} 10. g3 {[%clk 0:02:08.5]} 10... b5 {[%clk 0:02:24.2]} 11. Qxb5
{[%clk 0:01:52.3]} 11... Rb8 {[%clk 0:02:23.3]} 12. Qa4 {[%clk 0:01:48.3]} 12...
Bb7 {[%clk 0:02:23.1]} 13. f3 {[%clk 0:01:45.6]} 13... e5 {[%clk 0:02:02.7]} 14.
Bf2 {[%clk 0:01:42.6]} 14... e4 {[%clk 0:02:02.7]} 15. Bg2 {[%clk 0:01:15.5]}
15... exf3 {[%clk 0:02:02.3]} 16. Bxf3 {[%clk 0:01:09.9]} 16... Bxf3 {[%clk
0:01:49.4]} 17. exf3 {[%clk 0:01:09.8]} 17... Re8+ {[%clk 0:01:50]} 18. Kf1
{[%clk 0:01:09.6]} 18... Ne5 {[%clk 0:01:50.4]} 19. Kg2 {[%clk 0:00:52.7]} 19...
Qd3 {[%clk 0:01:48.2]} 20. Qd1 {[%clk 0:00:39.6]} 20... Nxc4 {[%clk 0:01:44]}
21. Qf1 {[%clk 0:00:18.7]} 21... Re2 {[%clk 0:01:37.1]} 0-1

[Event "*** Titled Tuesday Blitz"]
[Site "Chess.com"]
[Date "2021.04.20"]
[Round "1"]
[White "Taktikmonster"]
[Black "Semen_Khanin"]
[Result "0-1"]
[WhiteElo "2414"]
[BlackElo "2752"]
[TimeControl "180+1"]
[EndTime "10:05:25 PDT"]
[Termination "Semen_Khanin won by resignation"]

1. e4 {[%clk 0:03:00.9]} 1... c6 {[%clk 0:02:58.9]} 2. d4 {[%clk 0:03:00.8]}
2... d5 {[%clk 0:02:58.7]} 3. e5 {[%clk 0:03:01.1]} 3... Bf5 {[%clk 0:02:57.7]}
4. Nd2 {[%clk 0:03:00]} 4... h6 {[%clk 0:02:55.4]} 5. Nb3 {[%clk 0:02:59.9]}
5... e6 {[%clk 0:02:55.1]} 6. Nf3 {[%clk 0:02:59.4]} 6... Nd7 {[%clk 0:02:54.9]}
7. Be2 {[%clk 0:02:59.8]} 7... a5 {[%clk 0:02:53.9]} 8. a4 {[%clk 0:02:58.1]}
8... Ne7 {[%clk 0:02:50.8]} 9. O-O {[%clk 0:02:57.1]} 9... Bh7 {[%clk
0:02:50.5]} 10. Bd2 {[%clk 0:02:46.9]} 10... Nf5 {[%clk 0:02:48.2]} 11. Ne1
{[%clk 0:02:28.8]} 11... Be7 {[%clk 0:02:45.4]} 12. Nd3 {[%clk 0:02:20.6]} 12...
O-O {[%clk 0:02:45]} 13. f4 {[%clk 0:02:17.3]} 13... Qb6 {[%clk 0:02:42.2]} 14.
c3 {[%clk 0:02:12.7]} 14... c5 {[%clk 0:02:39.5]} 15. dxc5 {[%clk 0:02:11.6]}
15... Nxc5 {[%clk 0:02:39.4]} 16. Ndxc5 {[%clk 0:02:10.9]} 16... Bxc5+ {[%clk
0:02:38.9]} 17. Nxc5 {[%clk 0:02:11.8]} 17... Qxc5+ {[%clk 0:02:39]} 18. Kh1
{[%clk 0:02:12.6]} 18... d4 {[%clk 0:02:27.4]} 19. Qb3 {[%clk 0:01:57.5]} 19...
Rfd8 {[%clk 0:02:22.2]} 20. Rac1 {[%clk 0:01:49.8]} 20... d3 {[%clk 0:02:18]}
21. Bf3 {[%clk 0:01:48.9]} 21... Ne3 {[%clk 0:02:18.5]} 22. Rfe1 {[%clk
0:01:25]} 22... Nc4 {[%clk 0:02:16.9]} 23. Rcd1 {[%clk 0:01:22.7]} 23... Rab8
{[%clk 0:02:11.7]} 24. Be4 {[%clk 0:00:56]} 24... b5 {[%clk 0:02:03]} 25. Bxh7+
{[%clk 0:00:51.1]} 25... Kxh7 {[%clk 0:02:03.2]} 26. Re4 {[%clk 0:00:46.4]}
26... Qf2 {[%clk 0:02:00]} 27. Bc1 {[%clk 0:00:12.8]} 27... d2 {[%clk
0:02:00.1]} 28. axb5 {[%clk 0:00:09.9]} 28... dxc1=Q {[%clk 0:01:58.2]} 29. Rxc1
{[%clk 0:00:10.8]} 29... Nd2 {[%clk 0:01:57.2]} 30. Qc2 {[%clk 0:00:07.5]} 30...
Nxe4 {[%clk 0:01:57.1]} 31. Qxe4+ {[%clk 0:00:08.4]} 31... g6 {[%clk 0:01:57.4]}
32. c4 {[%clk 0:00:06.5]} 32... Qxb2 {[%clk 0:01:56.8]} 0-1